[Event "*** Titled Tuesday Blitz"]
[Site "Chess.com"]
[Date "2019.01.01"]
[Round "4"]
[White "JSMastropiero"]
[Black "TheBigBoss04"]
[Result "1-0"]
[WhiteElo "2288"]
[BlackElo "2505"]
[TimeControl "180+2"]
[EndTime "13:58:27 PST"]
[Termination "JSMastropiero won by resignation"]

1. d4 {[%clk 0:03:01.9]} 1... Nf6 {[%clk 0:03:00.6]} 2. c4 {[%clk 0:03:01.2]}
2... e6 {[%clk 0:03:02]} 3. g3 {[%clk 0:03:01.3]} 3... Bb4+ {[%clk 0:03:00.9]}
4. Bd2 {[%clk 0:02:58.8]} 4... a5 {[%clk 0:03:00.9]} 5. Bg2 {[%clk 0:02:58.1]}
5... d5 {[%clk 0:03:00.3]} 6. Nf3 {[%clk 0:02:56.7]} 6... dxc4 {[%clk
0:03:00.8]} 7. O-O {[%clk 0:02:56.5]} 7... O-O {[%clk 0:03:01.7]} 8. Qc2 {[%clk
0:02:51.3]} 8... Bd7 {[%clk 0:02:59.9]} 9. Qxc4 {[%clk 0:02:46.5]} 9... b5
{[%clk 0:02:59.8]} 10. Qc2 {[%clk 0:02:45.5]} 10... Na6 {[%clk 0:02:47.9]} 11.
Bg5 {[%clk 0:02:36.3]} 11... Rc8 {[%clk 0:02:43.4]} 12. Nbd2 {[%clk 0:02:27.2]}
12... h6 {[%clk 0:02:42.6]} 13. Bxf6 {[%clk 0:02:26.5]} 13... Qxf6 {[%clk
0:02:44.5]} 14. Ne4 {[%clk 0:02:25.9]} 14... Qe7 {[%clk 0:02:43.9]} 15. a3
{[%clk 0:02:20.1]} 15... Bd6 {[%clk 0:02:44.7]} 16. Qd2 {[%clk 0:02:17.7]} 16...
a4 {[%clk 0:02:43.7]} 17. Rac1 {[%clk 0:02:07.5]} 17... Rfd8 {[%clk 0:02:31.8]}
18. Qa5 {[%clk 0:02:02.7]} 18... Nb8 {[%clk 0:02:29.7]} 19. Nc5 {[%clk
0:02:01.4]} 19... Nc6 {[%clk 0:02:21.4]} 20. Qc3 {[%clk 0:01:59.1]} 20... Nb8
{[%clk 0:01:56.1]} 21. Rfd1 {[%clk 0:01:55.1]} 21... Bc6 {[%clk 0:01:54.4]} 22.
e3 {[%clk 0:01:45.2]} 22... Bd5 {[%clk 0:01:51.1]} 23. Ne1 {[%clk 0:01:40.4]}
23... Bxg2 {[%clk 0:01:50.4]} 24. Kxg2 {[%clk 0:01:41]} 24... c6 {[%clk
0:01:51.6]} 25. Ned3 {[%clk 0:01:40.8]} 25... Re8 {[%clk 0:01:28.8]} 26. f4
{[%clk 0:01:38.9]} 26... Nd7 {[%clk 0:01:00.9]} 27. Nxd7 {[%clk 0:01:09.8]}
27... Qxd7 {[%clk 0:01:02.8]} 28. Nc5 {[%clk 0:01:09.5]} 28... Qe7 {[%clk
0:01:01.7]} 29. Qd3 {[%clk 0:01:10.2]} 29... Red8 {[%clk 0:00:56.2]} 30. Qe4
{[%clk 0:01:11.2]} 30... Bb8 {[%clk 0:00:52.2]} 31. Nd3 {[%clk 0:01:08]} 31...
Bd6 {[%clk 0:00:39.4]} 32. Rc2 {[%clk 0:00:58.1]} 32... Rc7 {[%clk 0:00:28.6]}
33. Rdc1 {[%clk 0:00:57.6]} 33... Rdc8 {[%clk 0:00:26.7]} 34. Rxc6 {[%clk
0:00:51.8]} 34... Rxc6 {[%clk 0:00:24.4]} 35. Rxc6 {[%clk 0:00:53.4]} 35... Qb7
{[%clk 0:00:21.5]} 36. Rxc8+ {[%clk 0:00:53.5]} 36... Qxc8 {[%clk 0:00:23.2]}
37. Nf2 {[%clk 0:00:32.4]} 37... Qc4 {[%clk 0:00:21.5]} 38. Qd3 {[%clk
0:00:30.8]} 38... Qc6+ {[%clk 0:00:19.7]} 39. e4 {[%clk 0:00:30.7]} 39... b4
{[%clk 0:00:15.9]} 40. axb4 {[%clk 0:00:29]} 40... Bxb4 {[%clk 0:00:16.8]} 41.
d5 {[%clk 0:00:30.3]} 41... exd5 {[%clk 0:00:18.5]} 42. exd5 {[%clk 0:00:31.5]}
42... Qb6 {[%clk 0:00:17.6]} 43. Ne4 {[%clk 0:00:27.6]} 43... Bd6 {[%clk
0:00:15.5]} 44. Nxd6 {[%clk 0:00:27]} 44... Qxd6 {[%clk 0:00:13.6]} 45. Qc4
{[%clk 0:00:23.8]} 45... Qb6 {[%clk 0:00:14.8]} 46. Qc8+ {[%clk 0:00:20.5]}
46... Kh7 {[%clk 0:00:15.3]} 47. Qc2+ {[%clk 0:00:22.1]} 47... Kg8 {[%clk
0:00:16.9]} 48. Qd2 {[%clk 0:00:21.7]} 48... Qd6 {[%clk 0:00:14.8]} 49. Kf3
{[%clk 0:00:21.3]} 49... h5 {[%clk 0:00:13]} 50. h3 {[%clk 0:00:21.3]} 50... g6
{[%clk 0:00:05.3]} 51. Qd4 {[%clk 0:00:20.4]} 51... Kh7 {[%clk 0:00:06]} 52. g4
{[%clk 0:00:19.9]} 52... hxg4+ {[%clk 0:00:06.7]} 53. hxg4 {[%clk 0:00:21.7]}
53... Kg8 {[%clk 0:00:08.2]} 54. g5 {[%clk 0:00:20.7]} 54... Qd7 {[%clk
0:00:03.2]} 55. Kg3 {[%clk 0:00:20.5]} 55... Qd6 {[%clk 0:00:04.1]} 56. Qe5
{[%clk 0:00:17.6]} 56... Qb4 {[%clk 0:00:04.7]} 57. d6 {[%clk 0:00:17]} 57...
Qb3+ {[%clk 0:00:06]} 58. Kg4 {[%clk 0:00:17.8]} 58... Qd1+ {[%clk 0:00:07]} 59.
Kg3 {[%clk 0:00:19]} 59... Qg1+ {[%clk 0:00:08.2]} 60. Kf3 {[%clk 0:00:20]}
60... Qf1+ {[%clk 0:00:09.7]} 61. Ke4 {[%clk 0:00:21.1]} 61... Qc4+ {[%clk
0:00:09.5]} 62. Qd4 {[%clk 0:00:21.5]} 62... Qc6+ {[%clk 0:00:10]} 63. Kd3
{[%clk 0:00:22.7]} 63... Qb5+ {[%clk 0:00:10.8]} 64. Kc3 {[%clk 0:00:23.7]}
64... Qc6+ {[%clk 0:00:09.8]} 65. Kb4 {[%clk 0:00:24]} 65... Qd7 {[%clk
0:00:11]} 66. Qb6 {[%clk 0:00:19.5]} 66... Qf5 {[%clk 0:00:10.2]} 67. Qd4 {[%clk
0:00:17.2]} 67... Qd7 {[%clk 0:00:10.4]} 68. Qf6 {[%clk 0:00:11.4]} 68... Qc6
{[%clk 0:00:06.8]} 69. Qe7 {[%clk 0:00:10.9]} 69... Qb6+ {[%clk 0:00:05.9]} 70.
Kxa4 {[%clk 0:00:12]} 70... Qa6+ {[%clk 0:00:07.1]} 71. Kb4 {[%clk 0:00:13.3]}
71... Qb6+ {[%clk 0:00:08.1]} 72. Kc4 {[%clk 0:00:14.5]} 72... Qxb2 {[%clk
0:00:06.2]} 73. Qe8+ {[%clk 0:00:11.1]} 73... Kh7 {[%clk 0:00:06.3]} 74. Qxf7+
{[%clk 0:00:12.3]} 74... Kh8 {[%clk 0:00:07.7]} 75. Qf8+ {[%clk 0:00:13.2]}
75... Kh7 {[%clk 0:00:08.5]} 76. Qe7+ {[%clk 0:00:14.6]} 76... Kg8 {[%clk
0:00:09.3]} 77. Kd5 {[%clk 0:00:15.8]} 77... Qb3+ {[%clk 0:00:08.2]} 78. Ke5
{[%clk 0:00:16.9]} 78... Qc3+ {[%clk 0:00:08.4]} 79. Ke6 {[%clk 0:00:18.2]}
79... Qc4+ {[%clk 0:00:07.3]} 80. Kf6 {[%clk 0:00:18.8]} 80... Qxf4+ {[%clk
0:00:07.7]} 81. Kxg6 {[%clk 0:00:19.2]} 81... Qe4+ {[%clk 0:00:02.1]} 82. Qxe4
{[%clk 0:00:19.6]} 82... Kf8 {[%clk 0:00:03.9]} 83. Qe7+ {[%clk 0:00:20.2]} 1-0

[Event "*** Titled Tuesday Blitz"]
[Site "Chess.com"]
[Date "2019.01.01"]
[Round "4"]
[White "BlackBoarder"]
[Black "ama18"]
[Result "1-0"]
[WhiteElo "2559"]
[BlackElo "2432"]
[TimeControl "180+2"]
[EndTime "14:01:42 PST"]
[Termination "BlackBoarder won by resignation"]

1. e4 {[%clk 0:02:50.9]} 1... c5 {[%clk 0:03:00]} 2. Nf3 {[%clk 0:02:51.8]} 2...
d6 {[%clk 0:03:00.6]} 3. c3 {[%clk 0:02:52.8]} 3... Nf6 {[%clk 0:03:00.6]} 4. h3
{[%clk 0:02:53.8]} 4... g6 {[%clk 0:02:57.9]} 5. Bd3 {[%clk 0:02:54.8]} 5... Bg7
{[%clk 0:02:58.2]} 6. O-O {[%clk 0:02:51.8]} 6... Nc6 {[%clk 0:02:58.5]} 7. Bc2
{[%clk 0:02:53.1]} 7... d5 {[%clk 0:02:58.9]} 8. exd5 {[%clk 0:02:49.8]} 8...
Nxd5 {[%clk 0:02:59.5]} 9. d4 {[%clk 0:02:49.9]} 9... cxd4 {[%clk 0:03:01.4]}
10. cxd4 {[%clk 0:02:51.1]} 10... O-O {[%clk 0:03:01]} 11. Nc3 {[%clk 0:02:52]}
11... Ndb4 {[%clk 0:02:59.9]} 12. Be3 {[%clk 0:02:27.7]} 12... Nxc2 {[%clk
0:02:39.9]} 13. Qxc2 {[%clk 0:02:29.6]} 13... Nxd4 {[%clk 0:02:20.4]} 14. Nxd4
{[%clk 0:02:25.6]} 14... Bxd4 {[%clk 0:02:22.3]} 15. Rfd1 {[%clk 0:02:23.8]}
15... e5 {[%clk 0:02:22.9]} 16. Nb5 {[%clk 0:02:17.3]} 16... Bf5 {[%clk
0:02:20.3]} 17. Qb3 {[%clk 0:02:13.6]} 17... Be6 {[%clk 0:02:17.7]} 18. Qa3
{[%clk 0:02:09]} 18... Rc8 {[%clk 0:01:18.1]} 19. Nxd4 {[%clk 0:02:03.6]} 19...
exd4 {[%clk 0:01:19.6]} 20. Bxd4 {[%clk 0:02:05.5]} 20... Qg5 {[%clk 0:01:19.2]}
21. Qf3 {[%clk 0:01:52.1]} 21... Bd5 {[%clk 0:01:17]} 22. Qg4 {[%clk 0:01:38.6]}
22... Qxg4 {[%clk 0:01:14.1]} 23. hxg4 {[%clk 0:01:40.5]} 23... Rc2 {[%clk
0:01:15.7]} 24. Bxa7 {[%clk 0:01:27.5]} 24... Be6 {[%clk 0:01:12.6]} 25. g5
{[%clk 0:01:11.9]} 25... Rxb2 {[%clk 0:01:09.7]} 26. a4 {[%clk 0:01:13.1]} 26...
Rc8 {[%clk 0:01:08.1]} 27. Bd4 {[%clk 0:01:13.9]} 27... Re2 {[%clk 0:01:02.8]}
28. Rac1 {[%clk 0:00:53.5]} 28... Ra8 {[%clk 0:00:40]} 29. Ra1 {[%clk
0:00:42.2]} 29... Bb3 {[%clk 0:00:33.1]} 30. Rdb1 {[%clk 0:00:38.4]} 30... Bd5
{[%clk 0:00:31.3]} 31. a5 {[%clk 0:00:33.4]} 31... Re4 {[%clk 0:00:31.8]} 32.
Bf6 {[%clk 0:00:32.4]} 32... Rg4 {[%clk 0:00:29.5]} 33. g3 {[%clk 0:00:29.8]}
33... Re4 {[%clk 0:00:18.5]} 34. Rd1 {[%clk 0:00:21.1]} 34... Bc6 {[%clk
0:00:19.3]} 35. Kh2 {[%clk 0:00:18.8]} 35... Re2 {[%clk 0:00:19.4]} 36. Bd4
{[%clk 0:00:19.2]} 36... Rd8 {[%clk 0:00:20.1]} 37. Bb6 {[%clk 0:00:18.2]} 37...
Rde8 {[%clk 0:00:20.9]} 38. Rd6 {[%clk 0:00:15.2]} 38... R2e5 {[%clk 0:00:20.7]}
39. Be3 {[%clk 0:00:14.2]} 39... R5e6 {[%clk 0:00:20.6]} 40. Rad1 {[%clk
0:00:12.8]} 40... Rxd6 {[%clk 0:00:21.2]} 41. Rxd6 {[%clk 0:00:14.7]} 41... Kf8
{[%clk 0:00:21.8]} 42. Bc5 {[%clk 0:00:13.2]} 42... Kg8 {[%clk 0:00:22.6]} 43.
Bd4 {[%clk 0:00:13.7]} 43... Rc8 {[%clk 0:00:21.6]} 44. Bf6 {[%clk 0:00:14.4]}
44... Kf8 {[%clk 0:00:21.9]} 45. f4 {[%clk 0:00:14.7]} 45... Ke8 {[%clk
0:00:22.5]} 46. Kg1 {[%clk 0:00:15.7]} 46... Bd7 {[%clk 0:00:23.5]} 47. Rb6
{[%clk 0:00:16.4]} 47... Bc6 {[%clk 0:00:24.2]} 48. Kf2 {[%clk 0:00:17.6]} 48...
Kd7 {[%clk 0:00:25.3]} 49. Rb4 {[%clk 0:00:17.3]} 49... Ke6 {[%clk 0:00:23.1]}
50. g4 {[%clk 0:00:18.7]} 50... Kd5 {[%clk 0:00:23.9]} 51. Kg3 {[%clk
0:00:18.2]} 51... Kc5 {[%clk 0:00:24.9]} 52. Rb6 {[%clk 0:00:18]} 52... Ra8
{[%clk 0:00:22.1]} 53. Be7+ {[%clk 0:00:17.8]} 53... Kd5 {[%clk 0:00:22]} 54.
Bb4 {[%clk 0:00:16.8]} 54... Re8 {[%clk 0:00:22.3]} 55. Kf2 {[%clk 0:00:15.5]}
55... Re4 {[%clk 0:00:22.1]} 56. Bd2 {[%clk 0:00:17.1]} 56... Ra4 {[%clk
0:00:22.1]} 57. Rb3 {[%clk 0:00:15.9]} 57... Ra2 {[%clk 0:00:21.3]} 58. Rd3+
{[%clk 0:00:16.7]} 58... Ke4 {[%clk 0:00:21.8]} 59. Rd6 {[%clk 0:00:13.8]} 59...
Rc2 {[%clk 0:00:18.1]} 60. Ke2 {[%clk 0:00:14.1]} 60... Bb5+ {[%clk 0:00:18.8]}
61. Kd1 {[%clk 0:00:15]} 61... Ba4 {[%clk 0:00:19.4]} 62. Ke1 {[%clk 0:00:15.2]}
62... Bc6 {[%clk 0:00:17.5]} 63. Rf6 {[%clk 0:00:16.4]} 63... Bd5 {[%clk
0:00:17.9]} 64. Rb6 {[%clk 0:00:13.8]} 64... Kd3 {[%clk 0:00:17.8]} 65. Rd6
{[%clk 0:00:14.7]} 65... Ke4 {[%clk 0:00:17.6]} 66. Kd1 {[%clk 0:00:13]} 66...
Ra2 {[%clk 0:00:17.5]} 67. Kc1 {[%clk 0:00:12.7]} 67... Ra1+ {[%clk 0:00:16]}
68. Kb2 {[%clk 0:00:13.5]} 68... Rg1 {[%clk 0:00:17.2]} 69. Rb6 {[%clk
0:00:08.5]} 69... Rxg4 {[%clk 0:00:17.6]} 70. Rb4+ {[%clk 0:00:09.9]} 70... Kf5
{[%clk 0:00:18.1]} 71. Rb5 {[%clk 0:00:11.4]} 71... Ke6 {[%clk 0:00:19]} 72.
Rb6+ {[%clk 0:00:11.8]} 72... Kd7 {[%clk 0:00:19.9]} 73. Rb5 {[%clk 0:00:12.5]}
73... Bc6 {[%clk 0:00:21.1]} 74. Re5 {[%clk 0:00:11.2]} 74... Rg2 {[%clk
0:00:21.6]} 75. Kc1 {[%clk 0:00:12.2]} 75... Rg1+ {[%clk 0:00:22.5]} 76. Kc2
{[%clk 0:00:12.9]} 76... Rg2 {[%clk 0:00:24.1]} 77. Kc1 {[%clk 0:00:14.3]} 77...
Rh2 {[%clk 0:00:25.2]} 78. Bb4 {[%clk 0:00:14.7]} 78... Rh1+ {[%clk 0:00:23.6]}
79. Kd2 {[%clk 0:00:15.7]} 79... Rh2+ {[%clk 0:00:23.9]} 80. Ke1 {[%clk
0:00:16.8]} 80... Kd8 {[%clk 0:00:21]} 81. Re7 {[%clk 0:00:14.9]} 81... Bd5
{[%clk 0:00:22.1]} 82. Re5 {[%clk 0:00:15.8]} 82... Be6 {[%clk 0:00:21.4]} 83.
Rb5 {[%clk 0:00:16.8]} 83... Kc8 {[%clk 0:00:22.5]} 84. Bd6 {[%clk 0:00:17.2]}
84... Ra2 {[%clk 0:00:23.1]} 85. Be5 {[%clk 0:00:17.1]} 85... Ra3 {[%clk
0:00:18.5]} 86. Rc5+ {[%clk 0:00:17.6]} 86... Kd8 {[%clk 0:00:19.6]} 87. Rb5
{[%clk 0:00:18.6]} 87... Bc8 {[%clk 0:00:18.6]} 88. Kd2 {[%clk 0:00:18.9]} 88...
Rh3 {[%clk 0:00:18.5]} 89. Ke2 {[%clk 0:00:19.2]} 89... h6 {[%clk 0:00:18.9]}
90. Rd5+ {[%clk 0:00:16.4]} 90... Ke8 {[%clk 0:00:19.1]} 91. Bf6 {[%clk
0:00:16.8]} 91... Bd7 {[%clk 0:00:19.7]} 92. Re5+ {[%clk 0:00:16.6]} 92... Kf8
{[%clk 0:00:21.1]} 93. Rd5 {[%clk 0:00:16.7]} 93... Ke8 {[%clk 0:00:20.4]} 94.
Re5+ {[%clk 0:00:16.8]} 94... Be6 {[%clk 0:00:13.6]} 95. Kf2 {[%clk 0:00:12.9]}
95... hxg5 {[%clk 0:00:14.1]} 96. fxg5 {[%clk 0:00:13.8]} 96... Rd3 {[%clk
0:00:15.1]} 97. Rb5 {[%clk 0:00:14.4]} 97... Bc8 {[%clk 0:00:14.9]} 98. Re5+
{[%clk 0:00:14.6]} 98... Be6 {[%clk 0:00:07.2]} 99. Rb5 {[%clk 0:00:15.7]} 99...
Rb3 {[%clk 0:00:08.2]} 100. Rc5 {[%clk 0:00:15.2]} 100... Kd7 {[%clk 0:00:07.8]}
101. Be5 {[%clk 0:00:15.1]} 101... Kd8 {[%clk 0:00:08.7]} 102. Bc7+ {[%clk
0:00:14.6]} 102... Kd7 {[%clk 0:00:09.7]} 103. Bb6 {[%clk 0:00:15.9]} 103...
Rb2+ {[%clk 0:00:11]} 104. Ke3 {[%clk 0:00:15.4]} 104... Rb3+ {[%clk 0:00:12]}
105. Kd2 {[%clk 0:00:16.7]} 105... Rb2+ {[%clk 0:00:09.2]} 106. Kc1 {[%clk
0:00:16.2]} 106... Rg2 {[%clk 0:00:09.7]} 107. Rc7+ {[%clk 0:00:14.7]} 107...
Ke8 {[%clk 0:00:10.8]} 108. Rxb7 {[%clk 0:00:14.9]} 108... Rxg5 {[%clk
0:00:11.8]} 109. a6 {[%clk 0:00:15.4]} 109... Bd5 {[%clk 0:00:13.2]} 110. Rb8+
{[%clk 0:00:14.1]} 110... Kd7 {[%clk 0:00:13.3]} 111. a7 {[%clk 0:00:13.5]}
111... Rg4 {[%clk 0:00:10.8]} 112. Rd8+ {[%clk 0:00:11.9]} 112... Kc6 {[%clk
0:00:12]} 113. Rxd5 {[%clk 0:00:11.1]} 113... Ra4 {[%clk 0:00:13]} 114. Rd8
{[%clk 0:00:03.4]} 114... Kxb6 {[%clk 0:00:06.8]} 115. a8=Q {[%clk 0:00:03.9]}
115... Rxa8 {[%clk 0:00:07.9]} 116. Rxa8 {[%clk 0:00:05.8]} 116... Kc6 {[%clk
0:00:08.9]} 117. Rf8 {[%clk 0:00:07.7]} 117... f5 {[%clk 0:00:09.1]} 118. Rf6+
{[%clk 0:00:09]} 118... Kd5 {[%clk 0:00:11]} 119. Rxg6 {[%clk 0:00:10.9]} 119...
Ke4 {[%clk 0:00:12.4]} 120. Kd1 {[%clk 0:00:12.2]} 120... f4 {[%clk 0:00:14.3]}
121. Ke1 {[%clk 0:00:13.7]} 121... f3 {[%clk 0:00:16.2]} 122. Kf2 {[%clk
0:00:15]} 1-0

[Event "*** Titled Tuesday Blitz"]
[Site "Chess.com"]
[Date "2019.01.01"]
[Round "5"]
[White "tgpgoat"]
[Black "Morshynska"]
[Result "0-1"]
[WhiteElo "1979"]
[BlackElo "2095"]
[TimeControl "180+2"]
[EndTime "14:04:41 PST"]
[Termination "Morshynska won by resignation"]

1. d4 {[%clk 0:03:01.9]} 1... Nf6 {[%clk 0:02:59.8]} 2. Nf3 {[%clk 0:03:01.7]}
2... e6 {[%clk 0:03:00.2]} 3. c4 {[%clk 0:03:02.2]} 3... b6 {[%clk 0:03:00.1]}
4. g3 {[%clk 0:03:02.8]} 4... Bb7 {[%clk 0:02:58.9]} 5. Bg2 {[%clk 0:03:03.5]}
5... Be7 {[%clk 0:02:58.9]} 6. O-O {[%clk 0:03:04.6]} 6... O-O {[%clk
0:02:59.1]} 7. Nc3 {[%clk 0:03:05.7]} 7... Ne4 {[%clk 0:02:59.1]} 8. Nxe4 {[%clk
0:03:03.4]} 8... Bxe4 {[%clk 0:02:59.5]} 9. Nd2 {[%clk 0:03:04.1]} 9... Bxg2
{[%clk 0:02:59.8]} 10. Kxg2 {[%clk 0:03:04.4]} 10... d5 {[%clk 0:02:48.8]} 11.
e4 {[%clk 0:03:02.4]} 11... dxe4 {[%clk 0:02:41.2]} 12. Nxe4 {[%clk 0:03:02.5]}
12... Nc6 {[%clk 0:02:40.3]} 13. Be3 {[%clk 0:03:02.4]} 13... Qd7 {[%clk
0:02:32.1]} 14. d5 {[%clk 0:03:01.5]} 14... Na5 {[%clk 0:02:11.5]} 15. dxe6
{[%clk 0:02:59.9]} 15... Qxe6 {[%clk 0:02:11.6]} 16. Qc2 {[%clk 0:02:50.2]}
16... Nxc4 {[%clk 0:02:03.5]} 17. Ng5 {[%clk 0:02:47.4]} 17... Nxe3+ {[%clk
0:02:03.1]} 18. fxe3 {[%clk 0:02:46.3]} 18... Bxg5 {[%clk 0:02:03.3]} 0-1

[Event "*** Titled Tuesday Blitz"]
[Site "Chess.com"]
[Date "2019.01.01"]
[Round "5"]
[White "MerdeNoms943"]
[Black "tteshan"]
[Result "1-0"]
[WhiteElo "2258"]
[BlackElo "2130"]
[TimeControl "180+2"]
[EndTime "14:06:11 PST"]
[Termination "MerdeNoms943 won by checkmate"]

1. e4 {[%clk 0:03:01.9]} 1... c5 {[%clk 0:03:00]} 2. Nf3 {[%clk 0:03:01.5]} 2...
Nc6 {[%clk 0:03:01.3]} 3. d4 {[%clk 0:03:01.7]} 3... cxd4 {[%clk 0:03:03.2]} 4.
Nxd4 {[%clk 0:03:03.4]} 4... g6 {[%clk 0:03:04.2]} 5. Nc3 {[%clk 0:03:02]} 5...
Bg7 {[%clk 0:03:05.2]} 6. Be3 {[%clk 0:03:02.2]} 6... Nf6 {[%clk 0:03:05.2]} 7.
Bc4 {[%clk 0:02:57.6]} 7... O-O {[%clk 0:03:01.7]} 8. Bb3 {[%clk 0:02:58.6]}
8... Ng4 {[%clk 0:02:56.9]} 9. Qxg4 {[%clk 0:02:50.4]} 9... Nxd4 {[%clk
0:02:56.7]} 10. Qd1 {[%clk 0:02:51.6]} 10... Nxb3 {[%clk 0:02:56.9]} 11. axb3
{[%clk 0:02:52.6]} 11... d6 {[%clk 0:02:54]} 12. Bd4 {[%clk 0:02:41.1]} 12... a6
{[%clk 0:02:47.3]} 13. Bxg7 {[%clk 0:02:38.7]} 13... Kxg7 {[%clk 0:02:47.3]} 14.
Qd4+ {[%clk 0:02:40.3]} 14... Kg8 {[%clk 0:02:46.5]} 15. O-O-O {[%clk
0:02:35.9]} 15... b5 {[%clk 0:02:43.7]} 16. Kb1 {[%clk 0:02:23.9]} 16... Bd7
{[%clk 0:02:42]} 17. e5 {[%clk 0:02:22.2]} 17... Bg4 {[%clk 0:02:22.6]} 18. Qxg4
{[%clk 0:02:22.2]} 18... Qc7 {[%clk 0:02:13]} 19. Nd5 {[%clk 0:02:16.9]} 19...
Qb7 {[%clk 0:02:06]} 20. exd6 {[%clk 0:02:10.8]} 20... exd6 {[%clk 0:01:55.6]}
21. Nf6+ {[%clk 0:02:11.5]} 21... Kg7 {[%clk 0:01:53]} 22. Qd4 {[%clk
0:02:09.7]} 22... Qxg2 {[%clk 0:01:44.1]} 23. Ne8+ {[%clk 0:01:54.5]} 23... Kh6
{[%clk 0:01:42.9]} 24. Qh4# {[%clk 0:01:53.8]} 1-0

[Event "*** Titled Tuesday Blitz"]
[Site "Chess.com"]
[Date "2019.01.01"]
[Round "5"]
[White "BogdanDeac"]
[Black "Keranke"]
[Result "0-1"]
[WhiteElo "2742"]
[BlackElo "2763"]
[TimeControl "180+2"]
[EndTime "14:06:40 PST"]
[Termination "Keranke won by resignation"]

1. e4 {[%clk 0:03:01.9]} 1... g6 {[%clk 0:02:59.9]} 2. d4 {[%clk 0:03:02.8]}
2... Bg7 {[%clk 0:03:00.6]} 3. Nc3 {[%clk 0:03:04.3]} 3... d6 {[%clk 0:03:02.2]}
4. f4 {[%clk 0:03:05.2]} 4... a6 {[%clk 0:03:03.7]} 5. Nf3 {[%clk 0:03:05.9]}
5... b5 {[%clk 0:03:05.3]} 6. Bd3 {[%clk 0:03:06.8]} 6... Nd7 {[%clk 0:03:06.8]}
7. e5 {[%clk 0:03:07.5]} 7... c5 {[%clk 0:03:07.8]} 8. Be4 {[%clk 0:03:08]} 8...
Rb8 {[%clk 0:03:08.7]} 9. Be3 {[%clk 0:03:07.3]} 9... b4 {[%clk 0:03:09.3]} 10.
Ne2 {[%clk 0:03:07.2]} 10... Qc7 {[%clk 0:03:10.8]} 11. c3 {[%clk 0:03:07.3]}
11... Bb7 {[%clk 0:03:08.8]} 12. Ng3 {[%clk 0:03:04.9]} 12... Nh6 {[%clk
0:03:05.4]} 13. O-O {[%clk 0:03:04.7]} 13... O-O {[%clk 0:02:57.5]} 14. Qe2
{[%clk 0:03:04.8]} 14... Bxe4 {[%clk 0:02:54]} 15. Nxe4 {[%clk 0:03:05.3]} 15...
Qb7 {[%clk 0:02:55.5]} 16. Bd2 {[%clk 0:03:00.3]} 16... bxc3 {[%clk 0:02:53.8]}
17. bxc3 {[%clk 0:03:00.8]} 17... cxd4 {[%clk 0:02:55.4]} 18. cxd4 {[%clk
0:03:01.3]} 18... d5 {[%clk 0:02:49]} 19. Nc3 {[%clk 0:02:59.9]} 19... e6 {[%clk
0:02:47]} 20. Rab1 {[%clk 0:02:47.5]} 20... Qa7 {[%clk 0:02:47.8]} 21. Na4
{[%clk 0:02:43.9]} 21... Nf5 {[%clk 0:02:44]} 22. Qd3 {[%clk 0:02:44.6]} 22...
Nb6 {[%clk 0:02:31.3]} 23. Nxb6 {[%clk 0:02:39.6]} 23... Rxb6 {[%clk 0:02:33.2]}
24. Bb4 {[%clk 0:02:40.5]} 24... Rc8 {[%clk 0:02:27.4]} 25. Bc5 {[%clk
0:02:41.2]} 25... Rxc5 {[%clk 0:02:25]} 26. dxc5 {[%clk 0:02:41.9]} 26... Rxb1
{[%clk 0:02:22.8]} 27. Rxb1 {[%clk 0:02:43.8]} 27... Qxc5+ {[%clk 0:02:24.1]}
28. Kh1 {[%clk 0:02:44.6]} 28... Bf8 {[%clk 0:02:22]} 29. g3 {[%clk 0:02:45.1]}
29... Qf2 {[%clk 0:02:20.1]} 30. Qf1 {[%clk 0:02:15]} 30... Qxa2 {[%clk
0:02:19.7]} 31. Ra1 {[%clk 0:02:15.7]} 31... Qc2 {[%clk 0:02:16.5]} 32. Rxa6
{[%clk 0:02:15.4]} 32... Ne3 {[%clk 0:02:13.8]} 33. Qg1 {[%clk 0:02:16.3]} 33...
Qe2 {[%clk 0:02:11.8]} 34. Ng5 {[%clk 0:02:09.9]} 34... h6 {[%clk 0:01:49]} 0-1

[Event "*** Titled Tuesday Blitz"]
[Site "Chess.com"]
[Date "2019.01.01"]
[Round "5"]
[White "florianschwabeneder"]
[Black "Kira170"]
[Result "1-0"]
[WhiteElo "2457"]
[BlackElo "2604"]
[TimeControl "180+2"]
[EndTime "14:06:51 PST"]
[Termination "florianschwabeneder won by resignation"]

1. e4 {[%clk 0:03:01.9]} 1... e6 {[%clk 0:02:04.2]} 2. d3 {[%clk 0:03:01.9]}
2... d5 {[%clk 0:02:04.4]} 3. Qe2 {[%clk 0:03:03]} 3... Nf6 {[%clk 0:02:00.3]}
4. Nf3 {[%clk 0:03:04]} 4... dxe4 {[%clk 0:01:40.6]} 5. dxe4 {[%clk 0:03:03.6]}
5... b6 {[%clk 0:01:41.8]} 6. c4 {[%clk 0:02:34.4]} 6... Nc6 {[%clk 0:01:35.7]}
7. Nc3 {[%clk 0:02:33.4]} 7... Bb4 {[%clk 0:01:30.9]} 8. Bd2 {[%clk 0:02:33]}
8... Nd7 {[%clk 0:01:31]} 9. O-O-O {[%clk 0:02:32.2]} 9... a5 {[%clk 0:01:28]}
10. a3 {[%clk 0:02:22.4]} 10... Be7 {[%clk 0:01:28.2]} 11. Be3 {[%clk
0:02:04.4]} 11... Ba6 {[%clk 0:01:26.6]} 12. Qc2 {[%clk 0:01:57.6]} 12... Qc8
{[%clk 0:01:24.3]} 13. Be2 {[%clk 0:01:47.8]} 13... Nc5 {[%clk 0:01:20.5]} 14.
Nd4 {[%clk 0:01:38.6]} 14... Nxd4 {[%clk 0:01:18.6]} 15. Bxd4 {[%clk 0:01:40.5]}
15... c6 {[%clk 0:01:19.2]} 16. Bxg7 {[%clk 0:01:36.5]} 16... Rg8 {[%clk
0:01:20.3]} 17. Bd4 {[%clk 0:01:33.8]} 17... Qb7 {[%clk 0:01:21.2]} 18. e5
{[%clk 0:01:20.7]} 18... b5 {[%clk 0:01:22]} 19. cxb5 {[%clk 0:01:17.5]} 19...
cxb5 {[%clk 0:01:22]} 20. Bf3 {[%clk 0:01:18.7]} 1-0

[Event "*** Titled Tuesday Blitz"]
[Site "Chess.com"]
[Date "2019.01.01"]
[Round "5"]
[White "josmito10"]
[Black "DryCounty"]
[Result "0-1"]
[WhiteElo "2768"]
[BlackElo "2734"]
[TimeControl "180+2"]
[EndTime "14:07:05 PST"]
[Termination "DryCounty won by resignation"]

1. d4 {[%clk 0:03:01.9]} 1... Nf6 {[%clk 0:02:59.4]} 2. c4 {[%clk 0:03:03.3]}
2... g6 {[%clk 0:03:00.1]} 3. Nc3 {[%clk 0:03:04.4]} 3... Bg7 {[%clk 0:03:00.8]}
4. e4 {[%clk 0:03:05.3]} 4... O-O {[%clk 0:03:01.3]} 5. Nf3 {[%clk 0:03:06.3]}
5... d6 {[%clk 0:03:02.2]} 6. Be2 {[%clk 0:03:07.9]} 6... e5 {[%clk 0:03:03.2]}
7. Be3 {[%clk 0:03:09.5]} 7... c6 {[%clk 0:02:59.4]} 8. O-O {[%clk 0:03:06.4]}
8... exd4 {[%clk 0:03:00]} 9. Nxd4 {[%clk 0:03:07.4]} 9... Re8 {[%clk
0:03:01.1]} 10. Qc2 {[%clk 0:02:48.5]} 10... Qe7 {[%clk 0:03:00.2]} 11. Bf3
{[%clk 0:02:31.8]} 11... Nbd7 {[%clk 0:03:00.2]} 12. Rfe1 {[%clk 0:02:23.3]}
12... Ne5 {[%clk 0:02:59.3]} 13. Be2 {[%clk 0:01:53]} 13... Neg4 {[%clk
0:02:53.7]} 14. Bf4 {[%clk 0:01:48.3]} 14... Nxf2 {[%clk 0:02:32.7]} 15. Kxf2
{[%clk 0:01:42.9]} 15... Nxe4+ {[%clk 0:02:28.4]} 16. Qxe4 {[%clk 0:01:40.7]}
16... Qh4+ {[%clk 0:02:25.3]} 17. Bg3 {[%clk 0:00:27.1]} 17... Bxd4+ {[%clk
0:02:22.7]} 18. Kf1 {[%clk 0:00:21.3]} 18... Rxe4 {[%clk 0:02:20.1]} 19. Bxh4
{[%clk 0:00:22.1]} 19... Rxh4 {[%clk 0:02:19.6]} 20. Bf3 {[%clk 0:00:21.9]}
20... Be6 {[%clk 0:02:16.5]} 21. Rad1 {[%clk 0:00:19.5]} 21... Bxc4+ {[%clk
0:02:16]} 0-1